Cogmind - Beta 15 @@@ ROGUE MODE // 2025.08.09 @ 22:25:39 Player: Zoe Result: Destroyed by G-47 Trooper with Particle Gun Performance ------------- Evolutions (2) 1000 Regions Visited (6) 1200 Robots Destroyed (58) 290 Value Destroyed (1364) 1364 Prototype IDs (23) 460 Alien Tech Used (0) 0 Bonus (300) 300 TOTAL SCORE: 4614 Bonus ------- Aligned with FarCom 300 Cogmind --------- Core Integrity 0/550 Matter 273/300 Energy 63/100 System Corruption 2% Temperature Cool (36) Movement Core (400) Ox7 Location -8/Materials Parts ------- > --- POWER (1) -------- (None) > --- PROPULSION (2) --- (None) > --- UTILITY (6) ------ Large Storage Unit Advanced Visual Processing Unit Improved Signal Interpreter Improved Signal Interpreter Transmission Jammer > --- WEAPON (2) ------- Plasma Cutter > --- INVENTORY (15) --- Nuclear Core Light Nuclear Core Lightpack 2.0 Transmission Jammer Transmission Jammer Peak State ------------ > --- POWER ------------ Nuclear Core > --- PROPULSION ------- Light Treads Armored Treads > --- UTILITY ---------- Large Storage Unit Advanced Visual Processing Unit Improved Sensor Array Improved Signal Interpreter Improved Signal Interpreter Transmission Jammer > --- WEAPON ----------- Great Maul > --- INVENTORY -------- Reinforced Ion Engine Nuclear Core Light Nuclear Core Lightpack 2.0 Sensor Array Transmission Jammer Transmission Jammer Rocket Launcher Plasma Cutter [Rating: 32] Favorites ----------- Power Nuclear Core Engine Reinforced Ion Engine Power Core Nuclear Core Propulsion Light Treads Treads Light Treads Leg Aluminum Leg Utility Sensor Array Device Sensor Array Storage Large Storage Unit Processor Improved Signal Interpreter Hackware Hacking Suite Protection Light Armor Plating Weapon Light Cannon Energy Gun Medium Laser Ballistic Gun Assault Rifle Ballistic Cannon Light Cannon Launcher Rocket Launcher Special Weapon Plasma Cutter Impact Weapon Great Maul Build | -11 -10 -9 -9 -9 -8 -8 ------- Run | Yrd Mat Mat Min Exi Min Mat Slots Evolved 4 | . . 2 . . . 2 Power . | . . . . . . . Propulsion . | . . . . . . . Utility 4 | . . 2 . . . 2 Weapon . | . . . . . . . Parts Attached 41 | 7 3 10 5 1 2 13 Power 7 | 1 1 3 1 . . 1 Engine 4 | 1 1 1 1 . . . Core 3 | . . 2 . . . 1 Reactor . | . . . . . . . Propulsion 10 | 2 2 2 2 . . 2 Treads 8 | . 2 2 2 . . 2 Leg 2 | 2 . . . . . . Wheel . | . . . . . . . Hover . | . . . . . . . Flight . | . . . . . . . Utility 15 | 2 . 3 1 1 1 7 Device 7 | 1 . 2 . . . 4 Storage 2 | 1 . . . 1 . . Processor 4 | . . . . . 1 3 Hackware 1 | . . . 1 . . . Protection 1 | . . 1 . . . . Artifact . | . . . . . . . Weapon 9 | 2 . 2 1 . 1 3 Energy Gun 1 | 1 . . . . . . Energy Cannon . | . . . . . . . Ballistic Gun 1 | 1 . . . . . . Ballistic Cannon 3 | . . 1 1 . . 1 Launcher 1 | . . . . . . 1 Special Weapon 1 | . . . . . . 1 Impact Weapon 2 | . . 1 . . 1 . Slashing Weapon . | . . . . . . . Piercing Weapon . | . . . . . . . Special Melee Weapon . | . . . . . . . Unidentified Prototypes . | . . . . . . . Corrupted Parts 1 | . . . . . . 1 System Corruption 2 | . . . . . . 2 Parts Lost 18 | . . . 4 . 1 13 Power 1 | . . . . . . 1 Propulsion 6 | . . . 1 . 1 4 Utility 6 | . . . 2 . . 4 Weapon 5 | . . . 1 . . 4 Highest Loss Streak 6 | . . . 2 . 1 6 To Critical Strikes 2 | . . . 1 . . 1 Average Backups 6 | 4 6 7 6 5 5 6 Power 1 | . 1 1 . 1 1 2 Propulsion . | 1 1 1 1 1 . . Utility 1 | . 1 1 . . 1 1 Weapon 1 | 1 2 3 2 2 2 1 Tool/Special . | . . . . . . . Unused Backups 8 | . . 4 . . . 4 Power 2 | . . 1 . . . 1 Propulsion . | . . . . . . . Utility 4 | . . 1 . . . 3 Weapon 2 | . . 2 . . . . Tool/Special . | . . . . . . . Average Slot Usage (%) 88 | . 100 99 86 88 89 79 Engine 6 | . 14 4 1 11 11 1 Core 4 | . . 6 9 . . 7 Treads 17 | . 20 22 21 22 18 11 Device 13 | . 14 26 11 11 11 12 Storage 10 | . 14 11 11 11 11 9 Processor 8 | . . . . . 4 23 Hackware 5 | . . . 4 11 11 1 Protection 1 | . . 6 5 . . . Energy Gun 1 | . 14 3 . . . . Ballistic Gun 2 | . 14 9 . . . . Ballistic Cannon 6 | . . 1 10 11 11 3 Impact Weapon 8 | . . 7 11 11 11 8 Peak Build Rating 32 | 7 7 15 15 16 19 32 Average Rating 17 | 5 7 13 12 13 16 25 On Entrance 10 | . 7 7 15 12 15 19 Naked Turns . | . . . . . . . Heaviest Build 39 | 15 15 22 21 36 38 39 Greatest Support 40 | 20 40 40 40 40 40 40 Greatest Overweight (x) 11 | 3 . . . . 1 11 Average Overweight (x) . | . . . . . . . Largest Inventory Capacity 15 | 8 8 8 8 15 15 15 Average Capacity 11 | 7 8 8 8 8 15 15 Most Carried 11 | 7 7 8 8 8 9 11 Average Carried 7 | 4 6 7 6 6 7 8 Final Capacity 15 | 8 8 8 8 15 15 15 Final Carried 8 | 6 7 8 5 8 7 7 Class Distribution -------------------- 52% | Assassin 45% | Mutant Dominant Class ---------------- Mutant | -10/Materials Mutant | -9/Materials Mutant | -9/Mines Mutant | -9/Exiles Assassin | -8/Mines Assassin | -8/Materials Resources | -11 -10 -9 -9 -9 -8 -8 ----------- Run | Yrd Mat Mat Min Exi Min Mat Matter Collected 792 | 293 88 120 103 . 15 173 Remotely . | . . . . . . . Salvage Created 1937 | 134 192 332 562 . 31 686 Parts 83 | 12 11 22 22 . 3 13 Haulers Intercepted 4 | . 1 . . . . 3 Recyclers Shooed 6 | 1 1 . 3 . . 1 Parts Field Recycled . | . . . . . . . Retrieved Matter . | . . . . . . . Parts Self-Destructed . | . . . . . . . Prevented . | . . . . . . . Kills | -11 -10 -9 -9 -9 -8 -8 ------- Run | Yrd Mat Mat Min Exi Min Mat Combat Hostiles Destroyed 37 | . 3 10 10 . 3 11 Melee 16 | . . 6 6 . 1 3 Guns 6 | . 3 3 . . . . Cannons 1 | . . . 1 . . . AOE 2 | . . . . . . 2 Classes Destroyed 10 | 2 2 3 2 . . 1 Worker 4 | . . . 3 . . 1 Tunneler 4 | 4 . . . . . . Hauler 4 | . 1 . . . . 3 Recycler 6 | 1 . . 3 . . 2 Mechanic 1 | . . . . . . 1 Operator 2 | . . 2 . . . . Swarmer 9 | . . 3 3 . 3 . Grunt 22 | . 3 5 5 . . 9 Brawler 2 | . . . 2 . . . Sentry 4 | . . 2 . . . 2 Best Kill Streak 5 | 2 2 3 3 . 3 5 Combat Bots Only 3 | . 2 3 3 . 3 3 Max Kills in Single Turn 2 | 1 1 1 1 . 1 2 Gunslinging . | . . . . . . . Exploded 1 | . . . . . . 1 Melee 1 | . . 1 1 . 1 1 Uniques/NPCs Destroyed . | . . . . . . . Combat | -11 -10 -9 -9 -9 -8 -8 -------- Run | Yrd Mat Mat Min Exi Min Mat Hostile Shots Fired 356 | . 22 59 78 . 41 156 Missed 92 | . 10 15 15 . 13 39 Hits 264 | . 12 44 63 . 28 117 Melee 3 | . . . 3 . . . Projectile 261 | . 12 44 60 . 28 117 Critical Strikes 16 | . . 2 4 . . 10 Damage Taken 3441 | . 143 447 675 . 213 1963 Core 725 | . . 75 79 . 16 555 Absorbed by Shields . | . . . . . . . Regen/Repaired (Parts) 212 | . . . . . . 212 Core Remaining (%) 85 | 100 100 . . . 57 . Volleys Fired 42 | 11 16 10 2 . . 3 Largest 2 | 2 2 2 1 . . 1 Hottest 70 | 70 70 70 30 . . 33 Shots Fired 79 | 22 32 20 2 . . 3 Gun 74 | 22 32 20 . . . . Cannon 2 | . . . 2 . . . Launcher 3 | . . . . . . 3 Special . | . . . . . . . Kinetic 39 | 11 16 10 2 . . . Thermal 37 | 11 16 10 . . . . Explosive 3 | . . . . . . 3 Electromagnetic . | . . . . . . . Robot Hit Streak 7 | 4 5 7 3 . . 4 Robot Miss Streak 4 | 4 2 1 . . . 1 Penetration Max . | . . . . . . . Secondary Targets . | . . . . . . . Shots Hit Robots 155 | 13 19 28 44 . 5 46 Core Hits 55 | 6 8 13 11 . 1 16 Critical Kills 5 | 1 . 1 2 . . 1 Critical Parts Destroyed 15 | . . 2 4 . 1 8 Critical Strikes 25 | 2 2 3 8 . 1 9 Burn 3 | 1 2 . . . . . Destroy 3 | 1 . 2 . . . . Smash 19 | . . 1 8 . 1 9 Melee Attacks 143 | . . 20 56 . 12 55 Impact 143 | . . 20 56 . 12 55 Slashing . | . . . . . . . Piercing . | . . . . . . . Sneak Attacks 18 | . . 1 8 . . 9 Combat Hostiles 1 | . . . 1 . . . Follow-up Attacks . | . . . . . . . Damage Inflicted 5209 | 157 271 612 1544 . 147 2478 Guns 610 | 157 271 182 . . . . Cannons 32 | . . . 32 . . . Explosions 153 | . . . . . . 153 Melee 4411 | . . 430 1512 . 147 2322 Ramming 3 | . . . . . . 3 Kinetic 341 | 94 122 93 32 . . . Thermal 301 | 63 149 89 . . . . Explosive 153 | . . . . . . 153 Electromagnetic . | . . . . . . . Impact 4411 | . . 430 1512 . 147 2322 Slashing . | . . . . . . . Piercing . | . . . . . . . Highest Corruption 2 | . . . . . . 2 Average Corruption 2 | . . . . . . 2 Corruption Purged . | . . . . . . . Corruption Blocked . | . . . . . . . Effects 2 | . . . . . . 2 Heat Flow Errors 1 | . . . . . . 1 Data Loss (minor) 1 | . . . . . . 1 Overload Shots . | . . . . . . . Overflow Damage 1267 | . . 109 401 . 31 726 Projectiles 30 | . . . 14 . . 16 Explosions 9 | . . . . . . 9 Melee 1228 | . . 109 387 . 31 701 Knockbacks 14 | . . 2 1 . . 11 Impact 12 | . . 2 1 . . 9 Kinetic . | . . . . . . . Secondary 2 | . . . . . . 2 Self-Inflicted Damage 140 | . . . . . . 140 Shots 3 | . . . . . . 3 Rammed 1 | . . . . . . 1 Targets Rammed 1 | . . . . . . 1 Kicked . | . . . . . . . Crushed . | . . . . . . . Highest Temperature 280 | 45 105 42 8 . . 280 Average Temperature 47 | 15 45 23 7 . . 122 Received Heat Transfer 1536 | . 81 162 222 . . 1071 Effects 1 | . . . . . . 1 Energy Bleed 1 | . . . . . . 1 Siege Activations . | . . . . . . . Martial Activations . | . . . . . . . Shielding Activations . | . . . . . . . Robots Disrupted . | . . . . . . . Combat Hostiles . | . . . . . . . Robots Corrupted 15 | . . 2 3 . 2 8 Combat Hostiles 12 | . . 1 3 . 2 6 Parts Fried 20 | . . 3 1 . 2 14 Impact Corruptions 48 | . . 6 16 . 4 22 Robots Melted . | . . . . . . . Combat Hostiles . | . . . . . . . Parts Melted . | . . . . . . . Heat Transferred 1110 | 259 592 259 . . . . Parts Sabotaged . | . . . . . . . Parts Stolen . | . . . . . . . Parts Stripped . | . . . . . . . Power Chain Reactions . | . . . . . . . Alert | -11 -10 -9 -9 -9 -8 -8 ------- Run | Yrd Mat Mat Min Exi Min Mat Maximum Alert Level . | . . . . . . . Low Security (%) 100 | 100 100 100 100 . 100 100 Level 1 . | . . . . . . . Level 2 . | . . . . . . . Level 3 . | . . . . . . . Level 4 . | . . . . . . . Level 5 . | . . . . . . . High Security . | . . . . . . . Max Security . | . . . . . . . Peak Influence 180 | 5 40 180 123 . 75 123 Initial 53 | . . . 53 . . . Average 35 | . 8 85 79 . 6 32 Influence Increases 1246 | 25 77 355 270 . 85 434 Destroy 0b10 Robot/C 740 | . 60 200 200 . 60 220 Destroy 0b10 Robot/NC 105 | 25 5 10 30 . . 35 Destroy Leader 148 | . 12 50 40 . 10 36 Successful Hack 7 | . . 5 . . . 2 Disable Machine 15 | . . . . . . 15 Destroy Structure 21 | . . . . . . 21 Partial Spotted 15 | . . 15 . . . . Lose Combat Pursuer 195 | . . 75 . . 15 105 Influence Decreases 1173 | 25 77 218 330 77 85 361 Entered New Map 161 | . . . 84 77 . . Time Decay 886 | 25 77 218 206 . 85 275 Lost Part 126 | . . . 40 . . 86 Squads Dispatched 4 | . . 3 . . . 1 Investigation 2 | . . 1 . . . 1 Extermination . | . . . . . . . Reinforcement 2 | . . 2 . . . . Assault . | . . . . . . . Garrison . | . . . . . . . Intercept . | . . . . . . . Searches Triggered . | . . . . . . . Construction Impeded . | . . . . . . . Haulers Reinforced . | . . . . . . . Active Scanning Responses . | . . . . . . . Cargo Convoy Interrupts . | . . . . . . . Stealth | -11 -10 -9 -9 -9 -8 -8 --------- Run | Yrd Mat Mat Min Exi Min Mat Distress Signals 4 | . . 3 . . . 1 Communications Jammed 35 | . . . . . . 35 Distress Signals 35 | . . . . . . 35 Times Spotted 61 | . 6 18 11 . 4 22 Peak Tracking Total 7 | . 2 6 3 . 3 7 Tactical Retreats 7 | . . 2 . . 1 4 Traps | -11 -10 -9 -9 -9 -8 -8 ------- Run | Yrd Mat Mat Min Exi Min Mat Traps Triggered 1 | . . 1 . . . . Indirectly . | . . . . . . . Trap Hack Attempts . | . . . . . . . Triggered . | . . . . . . . Disarmed . | . . . . . . . Reprogrammed . | . . . . . . . Reused . | . . . . . . . Traps Extracted . | . . . . . . . Installed . | . . . . . . . Triggered . | . . . . . . . Machines | -11 -10 -9 -9 -9 -8 -8 ---------- Run | Yrd Mat Mat Min Exi Min Mat Machines Disabled 1 | . . . . . . 1 Max in Single Turn 1 | . . . . . . 1 Garrison Access 1 | . . . . . . 1 Machines Repaired . | . . . . . . . Machines Dismantled . | . . . . . . . Machines Sabotaged . | . . . . . . . Overloaded Fab Kills . | . . . . . . . Hacking | -11 -10 -9 -9 -9 -8 -8 --------- Run | Yrd Mat Mat Min Exi Min Mat Machines Accessed 6 | . 1 1 . 1 . 3 Terminals 2 | . 1 1 . . . . Fabricators . | . . . . . . . Repair Stations 2 | . . . . . . 2 Recycling Units . | . . . . . . . Scanalyzers . | . . . . . . . Garrison Access 1 | . . . . . . 1 Total Hacks 16 | . 5 3 . 1 . 7 Successful 10 | . 1 1 . 1 . 7 Failed 6 | . 4 2 . . . . Catastrophic 1 | . 1 . . . . . Database Lockouts . | . . . . . . . Manual 6 | . 2 3 . 1 . . Terminals 8 | . 5 3 . . . . Fabricators . | . . . . . . . Repair Stations 6 | . . . . . . 6 Recycling Units . | . . . . . . . Scanalyzers . | . . . . . . . Garrison Access 1 | . . . . . . 1 Terminal Hacks 1 | . . . . 1 . . Proto ID Catalog 1 | . . . . 1 . . Fabricator Hacks . | . . . . . . . Repair Station Hacks 6 | . . . . . . 6 Scan Component 3 | . . . . . . 3 Repair 3 | . . . . . . 3 Recycling Unit Hacks . | . . . . . . . Scanalyzer . | . . . . . . . Garrison Access Hacks 1 | . . . . . . 1 Seal Access 1 | . . . . . . 1 Unauthorized Hacks 2 | . 1 1 . . . . Terminals 2 | . 1 1 . . . . Botnet 2 | . 1 1 . . . . Fabricators . | . . . . . . . Repair Stations . | . . . . . . . Recycling Units . | . . . . . . . Scanalyzers . | . . . . . . . Garrison Access . | . . . . . . . Data Cores Recovered . | . . . . . . . Used . | . . . . . . . Hacking Detections 3 | . 1 1 . . . 1 Full Trace Events 3 | . 1 1 . . . 1 Feedback Events . | . . . . . . . Feedback Blocked . | . . . . . . . Robot Schematics Acquired . | . . . . . . . Robots Built . | . . . . . . . Authchips . | . . . . . . . Time . | . . . . . . . Total Robot Build Rating . | . . . . . . . Part Schematics Acquired . | . . . . . . . Parts Built . | . . . . . . . Authchips . | . . . . . . . Time . | . . . . . . . Total Part Build Rating . | . . . . . . . Parts Repaired 3 | . . . . . . 3 Time 90 | . . . . . . 90 Parts Recycled . | . . . . . . . Recycled Matter . | . . . . . . . Retrieved Matter . | . . . . . . . Retrieved Components . | . . . . . . . Parts Scanalyzed . | . . . . . . . Part Schematics Acquired . | . . . . . . . Parts Damaged . | . . . . . . . Bothacking | -11 -10 -9 -9 -9 -8 -8 ------------ Run | Yrd Mat Mat Min Exi Min Mat Used RIF Installer . | . . . . . . . Robots Hacked . | . . . . . . . Non-combat . | . . . . . . . Combat . | . . . . . . . Robot Hacks Applied . | . . . . . . . Relay Couplers Released . | . . . . . . . Fabnet Peak Effective % . | . . . . . . . Robots Rewired . | . . . . . . . Allies Hacked . | . . . . . . . Hacks Repelled . | . . . . . . . Allies | -11 -10 -9 -9 -9 -8 -8 -------- Run | Yrd Mat Mat Min Exi Min Mat Total Allies . | . . . . . . . Largest Group . | . . . . . . . Highest-Rated Group . | . . . . . . . Highest-Rated Ally . | . . . . . . . Total Orders . | . . . . . . . Ally Attacks . | . . . . . . . Total Damage . | . . . . . . . Kills . | . . . . . . . Allies Corrupted . | . . . . . . . Allies Melted . | . . . . . . . Intel | -11 -10 -9 -9 -9 -8 -8 ------- Run | Yrd Mat Mat Min Exi Min Mat Active Infowar (turns) 3769 | 11 296 501 421 365 966 1209 Optics 1194 | . . . . . . 1194 Sensors 3422 | . . 499 421 365 966 1171 Terrain 739 | . . 499 6 . . 234 Seismic 511 | 11 296 204 . . . . Jamming 129 | . . . . . . 129 Robot Analysis Total . | . . . . . . . Derelict Logs Recovered . | . . . . . . . Drone Launches . | . . . . . . . Drone Recoveries . | . . . . . . . Exploration | -11 -10 -9 -9 -9 -8 -8 ------------- Run | Yrd Mat Mat Min Exi Min Mat Turns Passed 3916 | 158 296 501 421 365 966 1209 Spaces Moved 1592 | 90 156 236 139 227 331 413 Core 26 | 11 . . . . . 15 Treads 1447 | . 116 236 139 227 331 398 Legs 119 | 79 40 . . . . . Wheels . | . . . . . . . Hover . | . . . . . . . Flight . | . . . . . . . Fastest Speed 50 | 50 120 160 160 160 160 160 Average Speed 176 | 117 149 160 160 160 184 215 Slowest Speed 600 | 200 160 160 160 160 240 600 Overloaded Moves . | . . . . . . . Propulsion Burnouts . | . . . . . . . Robots Hopped . | . . . . . . . Potential Cave-ins . | . . . . . . . Cave-ins Triggered . | . . . . . . . Exploration Rate (%) 34 | 5 28 21 35 60 61 31 Regions Visited 6 Branch Regions 3 Pre-discovered Areas . | . . . . . . . Known Exits Taken 1 | . . . . . 1 . Unknown Exits Taken 5 | 1 1 1 1 1 . . Scrap Searched 2 | . . . 1 . 1 . Spaces Dug 4 | . . . . . . 4 Terrain Destroyed 33 | . . . . . . 33 Melee 4 | . . . . . . 4 Projectile . | . . . . . . . AOE 29 | . . . . . . 29 Terrain Rammed . | . . . . . . . Walls Destroyed . | . . . . . . . Machines Disabled . | . . . . . . . Actions | -11 -10 -9 -9 -9 -8 -8 --------- Run | Yrd Mat Mat Min Exi Min Mat Total 2366 | 120 186 308 239 229 664 620 Wait 471 | . 7 8 31 . 316 109 Move 1586 | 89 155 235 138 226 330 413 Hop . | . . . . . . . Pick Up 48 | 13 3 11 2 1 2 16 Fast Attach 2 | . . 1 . 1 . . Attach 30 | 7 . 3 3 . 2 15 Detach 1 | . . . . . . 1 Swap 20 | . 3 9 3 . 1 4 Drop 22 | . 2 11 4 1 1 3 Fire 42 | 11 16 10 2 . . 3 Melee 143 | . . 20 56 . 12 55 Ram . | . . . . . . . Kick . | . . . . . . . Crush 1 | . . . . . . 1 Escape Stasis . | . . . . . . . Rewire . | . . . . . . . Trap . | . . . . . . . Miscellaneous . | . . . . . . . Route ------- -11/Scrapyard -10/Materials -9/Materials -9/Mines (discovered 2 exits: *Mat / *Exi) -9/Exiles -8/Mines -8/Materials History --------- Turn | Location | Event 24 | -11/Scrapyard | Discovered new exit (range 16) 159 | -11/Scrapyard | Entered Materials 329 | -10/Materials | Build established: Mutant 369 | -10/Materials | Discovered new exit (range 4) 455 | -10/Materials | Entered another Materials area 455 | -9/Materials | Evolved 2 slots: Utility x2 835 | -9/Materials | Discovered new exit (range 15) 956 | -9/Materials | Entered Mines 988 | -9/Mines | Received a Rocket Launcher from a helpful Derelict 1105 | -9/Mines | Discovered new exit (range 9) 1369 | -9/Mines | Deemed a non-threat by the Exiles lab entrance 1370 | -9/Mines | Discovered new exit (range 5) 1377 | -9/Mines | Entered Exiles 1416 | -9/Exiles | Met 8R-AWN 1445 | -9/Exiles | Met EX-HEX 1488 | -9/Exiles | Met EX-BIN 1507 | -9/Exiles | Aligned with FarCom system 1509 | -9/Exiles | Given EX-Vault access code 1547 | -9/Exiles | Opened EX-Vault 1557 | -9/Exiles | Found Lightpack 2.0 1590 | -9/Exiles | Warned to stay clear of 0b10 Research branches 1631 | -9/Exiles | Met EX-DEC 1728 | -9/Exiles | Discovered new exit (range 11) 1742 | -9/Exiles | Left Exiles lab with Lightpack 2.0 1742 | -9/Exiles | Entered Mines 2056 | -8/Mines | Build established: Assassin 2684 | -8/Mines | Discovered new exit (range 15) 2705 | -8/Mines | Identified exit to Materials 2708 | -8/Mines | Entered Materials 2708 | -8/Materials | Evolved 2 slots: Utility x2 2862 | -8/Materials | Repaired Lgt. Treads 2890 | -8/Materials | Repaired Lgt. Treads 2947 | -8/Materials | Repaired Great Maul 3166 | -8/Materials | Core integrity fell below 50% 3906 | -8/Materials | Core integrity fell below 20% 3917 | -8/Materials | Destroyed by G-47 Trooper with Particle Gun Last Messages --------------- 03907_ W-25 Informer distress signal jammed. 03908_ U-05 Engineer lays Concrete. 03908_ W-25 Informer distress signal jammed. 03908_ Rocket Launcher destroyed. 03909_ W-25 Informer distress signal jammed. 03909_ R-06 Scavenger collects Beam Rifle. 03909_ W-25 Informer distress signal jammed. 03910_ The unstable cave ceiling collapses. 03910_ W-25 Informer distress signal jammed. 03911_ K-01 Serf collects debris. 03911_ W-25 Informer distress signal jammed. 03911_ Material Compactor disabled. 03912_ W-25 Informer distress signal jammed. 03914_ K-01 Serf collects debris. 03914_ W-25 Informer distress signal jammed. 03917_ Critical hit (Burn: +37). 03917_ W-25 Informer distress signal jammed. Map ----- +----------------------------------------------------+ | ?????????????????????????????????????????????????? | | ?????????????????????????????????????????????????? | | ?????????????????????????????????????????????????? | | ?????????????????????????????????????????????????? | | ??????????????????????? ?????????????????????????? | | ??????????????????????? ?????????????????????????? | | ??????????????????????? ?????????????????????????? | | ??????????????????????? ?????????????????????????? | | ??????????????????????? #????????????????????????? | | ??????????????????????? ????????????????????????? | | ??????????????????????? ????????????????????????? | | ??????????????????????? ????????????????????????? | | ??????????????????????? ????????????????????????? | | ??????????????????????? #???????????????????????? | | ???????????????????????# #???????????????????????? | | ???????????????????????# #???????????????????????? | | ???????????????????????# #???????????????????????? | | ???????????????????????# #???????????????????????? | | ???????????????????????# #???????????????????????? | | ???????????????????????# #???????????????????????? | | ???????????????????????# #???????????????????????? | | ???? ########## #????##?????????????????? | | ???? ##### ####??????????????? | | ???? ##########g# w #??????????????? | | ????????????????????# # Y""" #??????????????? | | ?????????#####??????# # =@= """"" #??????????????? | | ?????????#!! ######## #k * """"" #??????????????? | | ?????????#!! # """" +??????????????? | | ?????????#! ##### """u #??g??o????????? | | ?????????#!* #???## #??????????????? | | ?????????#!! #????## % #??????????????? | | ?????????#!! #?????## ## [ #??????????????? | | ?????????#####%#?##################??????????????? | | ?????????????# #?# #??????????????????????? | | ?????????????# #?# """"" #??????????????????????? | | ?????????????# #?# """"" #??????????????????????? | | ???????????### ### """"" #????????????Y?????????? | | ???????????# # """"" #??????????????????????? | | ???????????# # """"" #??????????????????????? | | ???????????# + """"" #??????????????????????? | | ???????????# # """"" #??????????????????????? | | ???????????# # #??????????????????????? | | ???????????## ###########??????????????????????? | | ############# #???# ????????????????????????? | | ##??# ????????????????????????? | | #???# ????????????????????????? | | ##??# #????????????????????????? | | ############ #???# #????????????????????????? | | ????#????#?# #???# #????????????????????????? | | ???????????# #???# #??"?????????????????????? | +----------------------------------------------------+ Best States ------------- Heat Dissipation 31 Energy Generation 14 Energy Capacity 265 Matter Stores 300 Matter Capacity 300 Sight Range 20 Robot Scan Range 15 Terrain Scan Range 16 Terrain Scan Density 10 Jamming Range 12 Armor Coverage 150 Evasion (%) 55 Recoil Reduction 2 Offensive Hacking 10 Item Schematics ----------------- None Robot Schematics ------------------ None Fabricated ------------ Nothing Repaired ---------- Lgt. Treads | 15% | -8/Materials Lgt. Treads | 72% | -8/Materials Great Maul | 56% | -8/Materials Alien Tech Used ----------------- None Achievements -------------- None Challenges ------------ None Game ------ Seed EncryptedReactiveThrower Manual? 0 Play Time 00:25:16 Cumulative 43.0 hours Start 2025.08.09 @ 22:00:09 End 2025.08.09 @ 22:25:39 Sessions 1 Manual Loads 0 Difficulty Rogue Special Mode None Game No. 83 Rogue 80 Adventurer 3 Explorer 0 Win Type - Total 0 Types 0/0/0/0/0/0/0/0/0/0 Lore% 29 Gallery% 29 Achievement% 30 Wizard Run 0 Options --------- Layout 1 ASCII 0 Keyboard 0 Movement Mouse Keybinds 0 Fullscreen 1 Font 24/Smallcaps Map View 50x35 Zoom Use 0% Tactical HUD 1 Map Filters NONE Filters NONE Steam 1 RUN: e7788f45-4dcf-4e08-82ed-757ab5a30b03